bitfinex/quotes_BTCUSD_20250108
["timestamp","ask_amount","ask_price","bid_price","bid_amount"]
[1736369236570,0.56833692,94271.0,94260.0,0.001]
[1736369236770,0.89293692,94271.0,94260.0,0.001]
[1736369237210,0.15,94265.0,94242.0,0.06019999]
[1736369237411,0.212202,94250.0,94242.0,0.06019999]
[1736369237617,0.31650176,94250.0,94242.0,0.06019999]
[1736369238262,0.212211,94246.0,94242.0,0.06019999]
[1736369238506,0.212211,94246.0,94240.0,0.001]
[1736369239142,0.271395,94253.0,94240.0,0.001]
[1736369239143,0.212218,94243.0,94240.0,0.001]
[1736369239349,0.212221,94241.0,94240.0,0.001]
[1736369239593,0.31652076,94241.0,94240.0,0.001]
[1736369240378,0.32352076,94241.0,94240.0,0.001]
[1736369240825,0.31752076,94241.0,94240.0,0.001]
[1736369241037,0.32652076,94241.0,94240.0,0.001]
[1736369241241,0.33739223,94241.0,94240.0,0.001]
[1736369241364,0.32739223,94241.0,94240.0,0.001]
[1736369242231,0.212279,94216.0,94213.0,0.03019999]
[1736369242435,0.2335069,94216.0,94210.0,0.001]
[1736369242629,0.271458,94225.0,94210.0,0.001]
[1736369242878,0.52882076,94224.0,94210.0,0.001]
[1736369243237,0.31655976,94224.0,94210.0,0.001]
[1736369243471,0.001,94216.0,94210.0,0.001]
[1736369243838,0.31655976,94224.0,94211.0,0.212289]
[1736369244014,0.32555976,94224.0,94211.0,0.212289]
[1736369244429,0.31655976,94224.0,94211.0,0.212289]
[1736369244894,0.002,94216.0,94211.0,0.212289]
[1736369245033,0.002,94216.0,94210.0,0.001]
[1736369246490,0.212282,94214.0,94210.0,0.001]
[1736369246954,0.21227,94220.0,94210.0,0.001]
[1736369246955,0.212271,94219.0,94210.0,0.001]
[1736369247158,0.212275,94217.0,94210.0,0.001]
[1736369247365,0.212275,94217.0,94204.0,0.19130399]
[1736369247477,0.001,94216.0,94201.0,0.0832]
[1736369247684,0.007,94216.0,94202.0,0.00106143]
[1736369247930,0.0109239,94226.0,94212.0,0.212285]
[1736369248124,0.212257,94225.0,94212.0,0.212285]
[1736369248303,0.007,94217.0,94212.0,0.212285]
[1736369249085,0.007,94217.0,94216.0,0.341378]
[1736369249490,0.007,94217.0,94216.0,0.083]
[1736369249695,0.212265,94222.0,94216.0,0.083]
[1736369249900,0.002,94226.0,94207.0,0.0814]
[1736369250112,0.002,94226.0,94200.0,0.213312]
[1736369250113,0.006,94216.0,94200.0,0.213312]
[1736369250317,0.002,94226.0,94200.0,0.001]
[1736369250318,0.212298,94207.0,94200.0,0.001]
[1736369250523,0.212292,94210.0,94200.0,0.001]
[1736369250524,0.212307,94203.0,94200.0,0.001]
[1736369251141,0.212311,94201.0,94200.0,0.001]
[1736369251959,0.31660676,94203.0,94200.0,0.001]
[1736369252903,0.10529976,94203.0,94200.0,0.001]
[1736369253099,0.1158212,94203.0,94200.0,0.001]
[1736369257298,0.212302,94206.0,94195.0,0.19132399]
[1736369257579,0.22303744,94206.0,94195.0,0.19132399]
[1736369257834,0.04353294,94205.0,94191.0,0.212333]
[1736369257996,0.212305,94204.0,94191.0,0.212333]
[1736369258202,0.22303744,94206.0,94190.0,0.001]
[1736369258436,0.22303744,94206.0,94195.0,0.212323]
[1736369258710,0.05916,94216.0,94198.0,0.212318]
[1736369258851,0.2544223,94216.0,94200.0,0.212313]
[1736369259052,0.2544223,94216.0,94201.0,0.212311]
[1736369259259,0.212288,94212.0,94201.0,0.212311]
[1736369259458,0.003,94206.0,94201.0,0.212311]
[1736369259902,0.212287,94212.0,94201.0,0.212311]
[1736369260098,0.02600159,94211.0,94201.0,0.212311]
[1736369260828,0.003,94206.0,94201.0,0.212311]
[1736369260964,0.02600159,94211.0,94201.0,0.212311]
[1736369261396,0.212291,94210.0,94198.0,0.212318]
[1736369261639,0.0421433,94209.0,94198.0,0.212318]
[1736369261809,0.0421433,94209.0,94201.0,0.21231]
[1736369262014,0.0421433,94209.0,94198.0,0.212318]
[1736369262368,0.212304,94205.0,94193.0,0.0009828]
[1736369262578,0.212296,94208.0,94193.0,0.0009828]
[1736369262579,0.212311,94202.0,94193.0,0.0009828]
[1736369262862,0.212314,94200.0,94190.0,0.001]
[1736369264154,0.02600159,94201.0,94190.0,0.001]
[1736369264369,0.02600159,94201.0,94191.0,0.212334]
[1736369265462,0.212311,94201.0,94190.0,0.001]
[1736369267536,0.01059536,94202.0,94190.0,0.001]
[1736369267736,0.212307,94203.0,94191.0,0.212334]
[1736369268131,0.22307854,94203.0,94191.0,0.212334]
[1736369268958,0.22307854,94203.0,94190.0,0.001]
[1736369269190,0.04353795,94202.0,94191.0,0.212334]
[1736369269344,0.22307854,94203.0,94191.0,0.212334]
[1736369269696,0.212283,94214.0,94192.0,0.00106159]
[1736369269898,0.4046,94224.0,94192.0,0.00106159]
[1736369269899,0.001,94202.0,94201.0,0.212311]
[1736369270106,0.3246,94224.0,94201.0,0.212311]
[1736369270107,0.212278,94216.0,94205.0,0.212301]
[1736369270898,0.006,94214.0,94205.0,0.212301]
[1736369271276,0.2547331,94216.0,94202.0,0.212309]
[1736369271472,0.212285,94213.0,94197.0,0.0009881]
[1736369271862,0.07001177,94219.0,94198.0,0.212318]
[1736369272066,0.212286,94213.0,94205.0,0.09487807]
[1736369272215,0.424572,94213.0,94205.0,0.07287806]
[1736369272446,0.001,94214.0,94205.0,0.07287806]
[1736369272819,0.212285,94213.0,94205.0,0.07287806]
[1736369273116,0.212285,94213.0,94199.0,0.212316]
[1736369273307,0.212293,94210.0,94199.0,0.212316]
[1736369273652,0.216285,94213.0,94199.0,0.212316]
[1736369274134,0.004,94213.0,94200.0,0.10536123]
[1736369274335,0.02,94214.0,94200.0,0.10536123]
[1736369274511,0.02,94214.0,94206.0,0.212299]
[1736369274678,0.003,94210.0,94206.0,0.212299]
[1736369275063,0.003,94210.0,94206.0,0.424598]
[1736369275216,0.003,94210.0,94208.0,0.212296]
[1736369275975,0.001,94213.0,94208.0,0.424592]
[1736369276200,0.004,94213.0,94208.0,0.424592]
[1736369277078,0.22270561,94222.0,94208.0,0.424592]
[1736369277277,0.22270561,94222.0,94208.0,0.40359199]
[1736369277687,0.22270561,94222.0,94208.0,0.19029599]
[1736369278024,0.02,94219.0,94208.0,0.19129599]
[1736369278230,0.212273,94218.0,94208.0,0.19129599]
[1736369278616,0.212285,94213.0,94208.0,0.001]
[1736369278784,0.212276,94217.0,94208.0,0.001]
[1736369278994,0.424579,94211.0,94208.0,0.001]
[1736369279191,0.0828,94213.0,94194.0,0.212325]
[1736369279421,0.212303,94205.0,94194.0,0.212325]
[1736369280653,0.212301,94206.0,94194.0,0.212325]
[1736369280997,0.212308,94203.0,94192.0,0.0817]
[1736369281624,0.10429976,94216.0,94192.0,0.0817]
[1736369281897,0.212324,94196.0,94190.0,0.001]
[1736369282074,0.212317,94199.0,94190.0,0.001]
[1736369282366,0.212326,94195.0,94190.0,0.001]
[1736369282567,0.2547903,94195.0,94190.0,0.001]
[1736369282769,0.212326,94195.0,94190.0,0.001]
[1736369283593,0.214326,94195.0,94190.0,0.001]
[1736369284027,0.00102958,94194.0,94190.0,0.001]
[1736369284229,0.212334,94191.0,94190.0,0.001]
[1736369284401,0.21233,94193.0,94190.0,0.001]
[1736369284749,0.212334,94191.0,94190.0,0.001]
[1736369287160,0.01047799,94195.0,94175.0,0.05598929]
[1736369287356,0.212344,94187.0,94175.0,0.05598929]
[1736369287566,0.008,94191.0,94176.0,0.212368]
[1736369287882,0.008,94191.0,94177.0,0.212366]
[1736369288105,0.001,94191.0,94187.0,0.212342]
[1736369288307,0.001,94191.0,94187.0,0.424685]
[1736369288513,0.001,94191.0,94189.0,0.258539]
[1736369289360,0.2123,94207.0,94196.0,0.212321]
[1736369289634,0.009,94195.0,94179.0,0.0452]
[1736369289790,0.212339,94189.0,94179.0,0.0452]
[1736369290010,0.02243686,94188.0,94186.0,0.09532663]
[1736369290220,0.212339,94189.0,94186.0,0.09532663]
[1736369290423,0.21233,94193.0,94186.0,0.09532663]
[1736369290641,0.212325,94195.0,94186.0,0.09532663]
[1736369290872,0.218325,94195.0,94186.0,0.09532663]
[1736369291098,0.212325,94195.0,94180.0,0.212358]
[1736369291276,0.212334,94192.0,94180.0,0.212358]
[1736369291607,0.005,94189.0,94180.0,0.212358]
[1736369291837,0.212341,94188.0,94172.0,0.212376]
[1736369292020,0.212341,94188.0,94175.0,0.21237]
[1736369293052,0.04465075,94187.0,94175.0,0.21237]
[1736369293255,0.212341,94188.0,94175.0,0.21237]
[1736369293460,0.212341,94188.0,94178.0,0.212362]
[1736369293857,0.216341,94188.0,94178.0,0.212362]
[1736369294021,0.212334,94192.0,94182.0,0.212354]
[1736369294414,0.005,94188.0,94182.0,0.212354]
[1736369294660,0.212334,94192.0,94178.0,0.212362]
[1736369295045,0.01041407,94195.0,94179.0,0.0505632]
[1736369295256,0.212322,94197.0,94174.0,0.08196169]
[1736369295461,0.212322,94197.0,94186.0,0.212345]
[1736369296539,0.004,94188.0,94186.0,0.212345]
[1736369296740,0.001,94192.0,94186.0,0.212345]
[1736369297283,0.219322,94197.0,94186.0,0.19034499]
[1736369297489,0.212322,94197.0,94186.0,0.19034499]
[1736369297686,0.003,94188.0,94186.0,0.19034499]
[1736369297928,0.213322,94197.0,94186.0,0.19034499]
[1736369298474,0.004,94192.0,94189.0,0.212337]
[1736369299475,0.004,94192.0,94191.0,0.258234]
[1736369299692,0.02,94198.0,94191.0,0.258234]
[1736369300004,0.212287,94212.0,94202.0,0.212309]
[1736369300744,0.212296,94209.0,94199.0,0.212315]
[1736369301108,0.001,94198.0,94196.0,0.212323]
[1736369301366,0.001,94198.0,94197.0,0.00106145]
[1736369301766,0.001,94198.0,94196.0,0.212323]
[1736369302181,0.0223304,94198.0,94196.0,0.19032299]
[1736369302604,0.0213304,94198.0,94188.0,0.212339]
[1736369302809,0.212297,94208.0,94185.0,0.212346]
[1736369302810,0.21232,94197.0,94185.0,0.212346]
[1736369303012,0.21232,94197.0,94188.0,0.212341]
[1736369303220,0.21227,94220.0,94190.0,0.0462]
[1736369303425,0.212261,94224.0,94210.0,0.212289]
[1736369303623,0.15,94223.0,94191.0,0.10429976]
[1736369303830,0.15,94223.0,94214.0,0.212282]
[1736369304291,0.002,94220.0,94214.0,0.212282]
[1736369304717,0.002,94220.0,94218.0,0.212272]
[1736369304894,0.002,94220.0,94201.0,0.0009992]
[1736369305123,0.04068356,94220.0,94214.0,0.212281]
[1736369305956,0.00102958,94219.0,94203.0,0.212307]
[1736369306114,0.212271,94219.0,94203.0,0.212307]
[1736369306311,0.1975,94217.0,94201.0,0.0009992]
[1736369306535,0.10532934,94216.0,94201.0,0.0009992]
[1736369306722,0.212293,94209.0,94201.0,0.0009992]
[1736369307103,0.212303,94205.0,94195.0,0.212325]
[1736369307307,0.212296,94208.0,94198.0,0.212317]
[1736369307925,0.02,94204.0,94198.0,0.212317]
[1736369308981,0.02,94204.0,94195.0,0.19032499]
[1736369309188,0.25016896,94203.0,94191.0,0.212333]
[1736369310674,0.25516896,94203.0,94191.0,0.212333]
[1736369310913,0.25016896,94203.0,94191.0,0.212333]
[1736369311150,0.25616896,94203.0,94191.0,0.212333]
[1736369311879,0.25716896,94203.0,94191.0,0.212333]
[1736369312133,0.03028293,94202.0,94191.0,0.212333]
[1736369312619,0.212311,94201.0,94191.0,0.212333]
[1736369312839,0.212311,94201.0,94191.0,0.19033299]
[1736369313832,0.03028293,94202.0,94191.0,0.19033299]
[1736369314034,0.005,94201.0,94191.0,0.19033299]
[1736369314782,0.212307,94203.0,94191.0,0.19033299]
[1736369315573,0.006,94202.0,94191.0,0.19033299]
[1736369315976,0.04676547,94201.0,94191.0,0.19033299]
[1736369316293,0.212333,94192.0,94190.0,0.0009957]
[1736369316473,0.00102958,94191.0,94190.0,0.0009957]
[1736369316670,0.212343,94188.0,94177.0,0.212365]
[1736369317297,0.212336,94191.0,94177.0,0.19036499]
[1736369317953,0.006,94188.0,94177.0,0.19036499]
[1736369318106,0.001,94188.0,94177.0,0.19036499]
[1736369319217,0.001,94188.0,94177.0,0.40272999]
[1736369319420,0.219336,94191.0,94180.0,0.212357]
[1736369319630,0.008,94191.0,94180.0,0.212357]
[1736369319821,0.220334,94191.0,94180.0,0.212357]
[1736369320043,0.213334,94191.0,94180.0,0.212357]
[1736369320302,0.005,94188.0,94180.0,0.212357]
[1736369320472,0.01653765,94192.0,94180.0,0.212357]
[1736369320700,0.001,94188.0,94185.0,0.083]
[1736369321105,0.001,94188.0,94186.0,0.212345]
[1736369321510,0.005,94188.0,94187.0,0.212343]
[1736369321713,0.271379,94207.0,94186.0,0.212345]
[1736369321920,0.212307,94204.0,94193.0,0.212329]
[1736369322284,0.22902441,94204.0,94193.0,0.19032899]
[1736369322596,0.02,94198.0,94193.0,0.19032899]
[1736369323484,0.02,94198.0,94188.0,0.212341]
[1736369323660,0.21232,94197.0,94186.0,0.212345]
[1736369323864,0.0444634,94196.0,94189.0,0.212337]
[1736369324072,0.02,94198.0,94189.0,0.212337]
[1736369324280,0.024,94198.0,94189.0,0.212337]
[1736369324481,0.02,94198.0,94187.0,0.212343]
[1736369324684,0.02490314,94197.0,94187.0,0.212343]
[1736369324937,0.02990314,94197.0,94187.0,0.212343]
[1736369325140,0.02990314,94197.0,94196.0,0.212323]
[1736369325141,0.005,94197.0,94196.0,0.212323]
[1736369326776,0.005,94197.0,94189.0,0.212339]
[1736369326777,0.01633857,94210.0,94203.0,0.212306]
[1736369326980,0.01633857,94210.0,94207.0,0.212296]
[1736369327183,0.212268,94221.0,94208.0,0.212296]
[1736369327388,0.01667902,94215.0,94208.0,0.19029599]
[1736369327592,0.212273,94218.0,94207.0,0.212296]
[1736369327800,0.01683193,94220.0,94208.0,0.00106149]
[1736369328052,0.09466262,94236.0,94210.0,0.212291]
[1736369328256,0.212235,94235.0,94222.0,0.212263]
[1736369328715,0.212235,94235.0,94221.0,0.212266]
[1736369328716,0.212245,94231.0,94221.0,0.212266]
[1736369328967,0.05356025,94230.0,94221.0,0.212266]
[1736369329825,0.007,94218.0,94217.0,0.212273]
[1736369329945,0.212278,94216.0,94211.0,0.0009909]
[1736369330150,0.0755,94224.0,94207.0,0.09532663]
[1736369330151,0.00102958,94215.0,94207.0,0.09532663]
[1736369330371,0.21329158,94223.0,94207.0,0.09532663]
[1736369330573,0.212282,94215.0,94207.0,0.09532663]
[1736369330819,0.212282,94215.0,94204.0,0.212305]
[1736369331227,0.212276,94217.0,94204.0,0.212305]
[1736369331547,0.001,94215.0,94204.0,0.212305]
[1736369331722,0.001,94215.0,94207.0,0.212296]
[1736369332245,0.001,94215.0,94211.0,0.19028699]
[1736369332378,0.001,94215.0,94213.0,0.212284]
[1736369333388,0.001,94215.0,94208.0,0.212294]
[1736369333389,0.005,94215.0,94208.0,0.212294]
[1736369333592,0.22899883,94224.0,94211.0,0.212287]
[1736369333731,0.04412558,94223.0,94211.0,0.212287]
[1736369334123,0.001,94217.0,94211.0,0.212287]
[1736369334508,0.04412558,94223.0,94211.0,0.212287]
[1736369335017,0.001,94215.0,94211.0,0.212287]
[1736369336363,0.001,94215.0,94211.0,0.424576]
[1736369336820,0.04412558,94223.0,94211.0,0.424576]
[1736369337024,0.001,94224.0,94215.0,0.21228]
[1736369337183,0.002,94217.0,94215.0,0.19027999]
[1736369337365,0.212262,94223.0,94212.0,0.212285]
[1736369337568,0.213262,94223.0,94212.0,0.212285]
[1736369337770,0.001,94215.0,94212.0,0.212285]
[1736369338028,0.213262,94223.0,94212.0,0.212285]
[1736369338218,0.0425515,94222.0,94210.0,0.212291]
[1736369338372,0.002,94217.0,94210.0,0.212291]
[1736369338604,0.0425515,94222.0,94215.0,0.001]
[1736369338999,0.0425515,94222.0,94213.0,0.212283]
[1736369340128,0.001,94215.0,94213.0,0.212283]
[1736369340469,0.0425515,94222.0,94213.0,0.212283]
[1736369340682,0.02559339,94221.0,94213.0,0.212283]
[1736369340881,0.004,94222.0,94213.0,0.212283]
[1736369341023,0.212257,94226.0,94213.0,0.212283]
[1736369341223,0.001,94215.0,94213.0,0.212283]
[1736369341418,0.212264,94223.0,94213.0,0.212283]
[1736369341669,0.25635219,94223.0,94213.0,0.212283]
[1736369341878,0.004,94221.0,94213.0,0.212283]
[1736369342190,0.004,94221.0,94213.0,0.19028299]
[1736369343198,0.25635219,94223.0,94213.0,0.19028299]
[1736369343393,0.001,94215.0,94213.0,0.19028299]
[1736369343773,0.01636086,94227.0,94203.0,0.0801]
[1736369343974,0.004,94221.0,94220.0,0.212269]
[1736369344209,0.004,94221.0,94220.0,0.43926876]
[1736369344419,0.0781,94232.0,94210.0,0.0764]
[1736369344639,0.001,94215.0,94210.0,0.21229]
[1736369344849,0.001,94215.0,94213.0,0.001]
[1736369345038,0.0213269,94215.0,94213.0,0.001]
[1736369345478,0.0213269,94215.0,94207.0,0.212297]
[1736369345709,0.0213269,94215.0,94206.0,0.212299]
[1736369345923,0.0213269,94215.0,94196.0,0.0009863]
[1736369345924,0.00102958,94214.0,94196.0,0.0009863]
[1736369346128,0.21231,94202.0,94196.0,0.0009863]
[1736369346334,0.021231,94201.0,94196.0,0.0009863]
[1736369346540,0.021231,94201.0,94191.0,0.30765963]
[1736369346744,0.212314,94200.0,94191.0,0.09532663]
[1736369346922,0.021231,94201.0,94191.0,0.09532663]
[1736369347126,0.212329,94194.0,94191.0,0.09532663]
[1736369347336,0.424658,94194.0,94191.0,0.07332662]
[1736369347540,0.424658,94194.0,94182.0,0.23910502]
[1736369347541,0.21233,94193.0,94182.0,0.0009999]
[1736369348333,0.21233,94193.0,94183.0,0.212352]
[1736369348526,0.21233,94193.0,94182.0,0.0009999]
[1736369348806,0.212338,94190.0,94182.0,0.0009999]
[1736369349217,0.212338,94190.0,94178.0,0.212362]
[1736369350901,0.212357,94181.0,94180.0,0.001]
[1736369351727,0.213357,94181.0,94180.0,0.001]
[1736369351935,0.39593645,94181.0,94180.0,0.001]
[1736369352344,0.212377,94172.0,94161.0,0.19338689]
[1736369352701,0.212377,94172.0,94161.0,0.19437019]
[1736369353317,0.212372,94175.0,94165.0,0.212392]
[1736369353521,0.212372,94175.0,94161.0,0.0009833]
[1736369353522,0.07767778,94181.0,94161.0,0.0009833]
[1736369353748,0.07767778,94181.0,94161.0,0.0020452]
[1736369353948,0.003,94172.0,94161.0,0.0020452]
[1736369354127,0.003,94172.0,94170.0,0.212379]
[1736369354330,0.002,94181.0,94169.0,0.212382]
[1736369354542,0.006,94175.0,94169.0,0.212382]
[1736369355115,0.006,94175.0,94173.0,0.212373]
[1736369355582,0.006,94175.0,94174.0,0.0781]
[1736369355991,0.212323,94197.0,94184.0,0.212348]
[1736369356199,0.0424633,94196.0,94174.0,0.18239976]
[1736369356397,0.212309,94203.0,94191.0,0.212332]
[1736369356641,0.212298,94207.0,94195.0,0.212325]
[1736369356848,0.212298,94207.0,94177.0,0.212366]
[1736369357026,0.16554992,94208.0,94196.0,0.212322]
[1736369357262,0.212298,94207.0,94193.0,0.19032899]
[1736369357475,0.008,94196.0,94193.0,0.19032899]
[1736369357868,0.212279,94216.0,94193.0,0.19032899]
[1736369358023,0.212304,94205.0,94178.0,0.15009976]
[1736369358299,0.212308,94203.0,94178.0,0.15009976]
[1736369358507,0.1854019,94215.0,94189.0,0.212338]
[1736369358788,0.212315,94200.0,94189.0,0.212338]
[1736369359202,0.42463,94200.0,94185.0,0.212346]
[1736369359407,0.03274299,94199.0,94181.0,0.0009874]
[1736369359643,0.03274299,94199.0,94189.0,0.212338]
[1736369359848,0.212307,94204.0,94186.0,0.212345]
[1736369360055,0.212323,94196.0,94183.0,0.21235]
[1736369360225,0.212319,94198.0,94184.0,0.21235]
[1736369360442,0.02,94195.0,94184.0,0.21235]
[1736369360925,0.05904,94208.0,94185.0,0.212348]
[1736369361129,0.03139946,94207.0,94185.0,0.212348]
[1736369361331,0.212319,94198.0,94185.0,0.212348]
[1736369361524,0.212322,94197.0,94181.0,0.0009874]
[1736369361746,0.00102958,94196.0,94181.0,0.0009874]
[1736369361993,0.0802,94200.0,94181.0,0.0009874]
[1736369361994,0.10532934,94195.0,94181.0,0.0009874]
[1736369362204,0.212348,94185.0,94181.0,0.0009874]
[1736369362670,0.212348,94185.0,94173.0,0.212373]
[1736369363041,0.21234,94189.0,94170.0,0.001]
[1736369363278,0.21234,94189.0,94177.0,0.212365]
[1736369363482,0.212327,94194.0,94171.0,0.212379]
[1736369363483,0.212327,94194.0,94181.0,0.212356]
[1736369363684,0.212327,94194.0,94178.0,0.212361]
[1736369363685,0.006,94185.0,94178.0,0.212361]
[1736369364035,0.001,94185.0,94178.0,0.212361]
[1736369364628,0.21235,94184.0,94172.0,0.212377]
[1736369364826,0.212362,94179.0,94170.0,0.001]
[1736369365029,0.212379,94171.0,94170.0,0.001]
[1736369365229,0.212379,94171.0,94170.0,0.002]
[1736369365551,0.212379,94171.0,94170.0,0.001]
[1736369365792,0.22882041,94171.0,94170.0,0.001]
[1736369365988,0.31667876,94171.0,94170.0,0.001]
[1736369366355,0.31667876,94171.0,94170.0,0.002]
[1736369366616,0.32067876,94171.0,94170.0,0.002]
[1736369366869,0.31667876,94171.0,94170.0,0.001]
[1736369366999,0.33188787,94171.0,94170.0,0.002]
[1736369367206,0.33188787,94171.0,94150.0,0.001]
[1736369367207,0.212402,94161.0,94146.0,0.19542329]
[1736369367611,0.212402,94161.0,94149.0,0.212427]
[1736369368234,0.212396,94164.0,94149.0,0.424855]
[1736369368438,0.21239,94166.0,94152.0,0.21242]
[1736369368616,0.21239,94166.0,94153.0,0.21242]
[1736369369032,0.01520911,94171.0,94161.0,0.212399]
[1736369369235,0.212379,94171.0,94161.0,0.212399]
[1736369369612,0.212379,94171.0,94157.0,0.212409]
[1736369369803,0.008,94166.0,94155.0,0.212413]
[1736369370003,0.212393,94165.0,94152.0,0.212421]
[1736369370636,0.212393,94165.0,94155.0,0.212413]
[1736369372193,0.212393,94165.0,94155.0,0.19041299]
[1736369372756,0.001,94165.0,94155.0,0.19041299]
[1736369372953,0.001,94165.0,94158.0,0.212406]
[1736369373157,0.001,94165.0,94155.0,0.19041299]
[1736369373479,0.001,94165.0,94158.0,0.212408]
[1736369373480,0.007,94165.0,94158.0,0.212408]
[1736369373693,0.006,94165.0,94160.0,0.212402]
[1736369373899,0.0158436,94174.0,94143.0,0.0473]
[1736369374096,0.27135,94184.0,94169.0,0.212382]
[1736369374294,0.212366,94177.0,94166.0,0.212389]
[1736369375717,0.214366,94177.0,94166.0,0.212389]
[1736369376297,0.222366,94177.0,94166.0,0.212389]
[1736369376497,0.220366,94177.0,94166.0,0.212389]
[1736369376756,0.212383,94170.0,94156.0,0.212413]
[1736369376913,0.21239,94167.0,94156.0,0.212413]
[1736369377133,0.212382,94170.0,94160.0,0.212404]
[1736369377333,0.212382,94170.0,94160.0,0.19040399]
[1736369377536,0.21237,94175.0,94163.0,0.212395]
[1736369378004,0.002,94177.0,94166.0,0.21239]
[1736369378197,0.212368,94176.0,94163.0,0.212395]
[1736369378884,0.212376,94173.0,94163.0,0.212395]
[1736369379093,0.005,94170.0,94161.0,0.212401]
[1736369379322,0.212376,94173.0,94161.0,0.212401]
[1736369380095,0.002,94177.0,94161.0,0.212401]
[1736369380296,0.212368,94176.0,94161.0,0.212401]
[1736369380473,0.004,94170.0,94166.0,0.212388]
[1736369380639,0.212368,94176.0,94166.0,0.212388]
[1736369380875,0.002,94177.0,94166.0,0.212388]
[1736369381075,0.004,94173.0,94170.0,0.212381]
[1736369381267,0.004,94173.0,94165.0,0.0488]
[1736369381268,0.004,94173.0,94172.0,0.287577]
[1736369381686,0.005,94173.0,94172.0,0.287577]
[1736369382395,0.212344,94187.0,94177.0,0.212365]
[1736369383468,0.212325,94195.0,94172.0,0.0762]
[1736369383714,0.01420554,94191.0,94177.0,0.212364]
[1736369383923,0.006,94187.0,94177.0,0.212364]
[1736369384075,0.006,94187.0,94180.0,0.212357]
[1736369384280,0.006,94187.0,94184.0,0.212348]
[1736369384723,0.006,94187.0,94182.0,0.212354]
[1736369385324,0.001,94187.0,94174.0,0.212372]
[1736369385521,0.0425669,94186.0,94173.0,0.212375]
[1736369385725,0.212339,94189.0,94173.0,0.212375]
[1736369386080,0.001,94187.0,94173.0,0.212375]
[1736369386684,0.212339,94189.0,94173.0,0.212375]
[1736369386853,0.004,94186.0,94180.0,0.212358]
[1736369387056,0.001,94189.0,94180.0,0.212358]
[1736369387219,0.001,94189.0,94180.0,0.19035799]
[1736369387419,0.004,94187.0,94180.0,0.19035799]
[1736369388586,0.212337,94190.0,94180.0,0.19035799]
[1736369388967,0.004,94186.0,94180.0,0.19035799]
[1736369389148,0.212337,94190.0,94180.0,0.19035799]
[1736369389350,0.212341,94188.0,94178.0,0.212362]
[1736369389554,0.00502958,94187.0,94173.0,0.212375]
[1736369389772,0.212348,94185.0,94173.0,0.212375]
[1736369390699,0.0815,94183.0,94163.0,0.212395]
[1736369390921,0.212369,94176.0,94166.0,0.212389]
[1736369391345,0.424738,94176.0,94163.0,0.212395]
[1736369391635,0.212369,94176.0,94166.0,0.212388]
[1736369392377,0.218369,94176.0,94166.0,0.19038799]
[1736369392515,0.001,94176.0,94166.0,0.19038799]
[1736369392713,0.212365,94178.0,94166.0,0.19038799]
[1736369392984,0.006,94176.0,94166.0,0.19038799]
[1736369393134,0.001,94176.0,94166.0,0.19038799]
[1736369393481,0.006,94176.0,94166.0,0.19038799]
[1736369393893,0.006,94176.0,94166.0,0.25200689]
[1736369394114,0.21237,94175.0,94166.0,0.25200689]
[1736369394322,0.21237,94175.0,94166.0,0.19038799]
[1736369394983,0.212365,94178.0,94170.0,0.001]
[1736369395188,0.212354,94182.0,94170.0,0.001]
[1736369395388,0.006,94178.0,94170.0,0.001]
[1736369395600,0.001,94178.0,94170.0,0.001]
[1736369395776,0.212366,94177.0,94170.0,0.001]
[1736369395997,0.005,94175.0,94170.0,0.001]
[1736369396234,0.212359,94180.0,94170.0,0.001]
[1736369396676,0.006,94178.0,94171.0,0.212379]
[1736369396875,0.212361,94179.0,94170.0,0.001]
[1736369397286,0.212353,94183.0,94166.0,0.212389]
[1736369397481,0.212336,94190.0,94175.0,0.212369]
[1736369397636,0.212336,94190.0,94178.0,0.212362]
[1736369398475,0.212346,94186.0,94178.0,0.212362]
[1736369398858,0.22682736,94190.0,94178.0,0.212362]
[1736369399250,0.43916336,94190.0,94178.0,0.212362]
[1736369399485,0.44816336,94190.0,94178.0,0.212362]
[1736369399663,0.01449136,94190.0,94175.0,0.08]
[1736369399868,0.362332,94192.0,94175.0,0.08]
[1736369399869,0.002,94186.0,94181.0,0.212354]
[1736369400347,0.006,94190.0,94183.0,0.21235]
[1736369400521,0.006,94190.0,94189.0,0.212339]
[1736369400665,0.001,94190.0,94189.0,0.212339]
[1736369401275,0.001,94190.0,94189.0,0.39993876]
[1736369401480,0.001,94190.0,94189.0,0.44553876]
[1736369401991,0.30693762,94218.0,94208.0,0.212295]
[1736369402194,0.21228,94215.0,94202.0,0.19030699]
[1736369402404,0.10910497,94218.0,94210.0,0.212291]
[1736369402611,0.0802,94227.0,94210.0,0.0212291]
[1736369402808,0.212243,94232.0,94208.0,0.0757]
[1736369403010,0.212235,94235.0,94210.0,0.0492]
[1736369403329,0.009,94215.0,94211.0,0.10536102]
[1736369403577,0.009,94215.0,94212.0,0.212287]
[1736369403801,0.212239,94233.0,94221.0,0.212265]
[1736369403974,0.003,94227.0,94221.0,0.212265]
[1736369404210,0.003,94227.0,94224.0,0.212258]
[1736369404596,0.003,94227.0,94218.0,0.212273]
[1736369404801,0.003,94227.0,94222.0,0.212264]
[1736369405006,0.003,94227.0,94219.0,0.212269]
[1736369405434,0.003,94227.0,94223.0,0.212261]
[1736369405631,0.212239,94233.0,94219.0,0.212269]
[1736369406049,0.212248,94230.0,94219.0,0.212269]